Workbook

Sheet APROV 1
A1: SECRETARÍA DE EDUCACIÓN PÚBLICA DEL ESTADO DE BAJA CALIFORNIA SUR
A2: DIRECCIÓN DE EDUCACIÓN SECUNDARIA
A3: CICLO ESCOLAR 2019 - 2020
A5: APROVECHAMIENTO Y RIESGO DE NO ACREDITAR
A7: DIRECCIÓN: EDUCACIÓN SECUNDARIA DIRECTOR: PROFR. RUMUALDO RAMÍREZ GUTIERRÉZ PERIODO DE EVALUACIÓN: 1ER. PERIODO
A9: Promedio de Aprovechamiento de los Campos de Formación Académica | Z9: Promedio de Aprovechamiento de las Áreas de Desarrollo Personal y Social
A10: Modalidad | B10: Lengua Materna (Español) | E10: Lengua Extranjera (Inglés) | H10: Matemáticas | K10: Ciencias (Biología) | N10: Historia | Q10: Geografía | T10: Formación Cívica y Ética | W10: Educación Tecnológica | Z10: Artes | AC10: Educación Física | AF10: Tutoría y Educación Socioemocional | AI10: Prom. Final
B11: CALIF | E11: CALIF | H11: CALIF | K11: CALIF | N11: CALIF | Q11: CALIF | T11: CALIF | W11: CALIF | Z11: CALIF | AC11: CALIF | AF11: CALIF | AI11: CALIF
A12: Grales. | B12: 8.4 | E12: 8.4 | H12: 8.2 | K12: 8.5 | N12: 8.5 | Q12: 8.6 | T12: 8.7 | W12: 8.9 | Z12: 9.1 | AC12: 9.5 | AI12: =IFERROR(ROUND(AVERAGE(B12:AH12),1),"") -> 8.7
A13: Técs. | B13: 8.3 | E13: 8.3 | H13: 8.1 | K13: 8.2 | N13: 8.2 | Q13: 8.4 | T13: 8.4 | W13: 8.6 | Z13: 9 | AC13: 9.4 | AI13: 8.5
A14: Telesec. | B14: 8.2 | E14: 8.2 | H14: 8 | K14: 8.4 | N14: 8.2 | Q14: 8.2 | T14: 8.5 | W14: 9.2 | Z14: 9.1 | AC14: 9.5 | AI14: 8.6
A15: Gral. | B15: =IFERROR(ROUND(AVERAGE(B12:D14),1),"") -> 8.3 | E15: =IFERROR(ROUND(AVERAGE(E12:G14),1),"") -> 8.3 | H15: =IFERROR(ROUND(AVERAGE(H12:J14),1),"") -> 8.1 | K15: =IFERROR(ROUND(AVERAGE(K12:M14),1),"") -> 8.4 | N15: =IFERROR(ROUND(AVERAGE(N12:P14),1),"") -> 8.3 | Q15: =IFERROR(ROUND(AVERAGE(Q12:S14),1),"") -> 8.4 | T15: =IFERROR(ROUND(AVERAGE(T12:V14),1),"") -> 8.5 | W15: =IFERROR(ROUND(AVERAGE(W12:Y14),1),"") -> 8.9 | Z15: =IFERROR(ROUND(AVERAGE(Z12:AB14),1),"") -> 9.1 | AC15: =IFERROR(ROUND(AVERAGE(AC12:AE14),1),"") -> 9.5 | AF15: =IFERROR(ROUND(AVERAGE(AF12:AH14),1),"") ->  | AI15: =IFERROR(ROUND(AVERAGE(AI12:AJ14),1),"") -> 8.6
A17: Campos de Formación Académica en riesgo de no acreditar | Z17: Áreas de Desarrollo Personal y Social en riesgo de no acreditar
A18: Modalidad | B18: Lengua Materna (Español) | E18: Lengua Extranjera (Inglés) | H18: Matemáticas | K18: Ciencias (Biología) | N18: Historia | Q18: Geografía | T18: Formación Cívica y Ética | W18: Educación Tecnológica | Z18: Artes | AC18: Educación Física | AF18: Tutoría y Educación Socioemocional | AI18: Total
B19: 5 | C19: 6 | D19: T | E19: 5 | F19: 6 | G19: T | H19: 5 | I19: 6 | J19: T | K19: 5 | L19: 6 | M19: T | N19: 5 | O19: 6 | P19: T | Q19: 5 | R19: 6 | S19: T | T19: 5 | U19: 6 | V19: T | W19: 5 | X19: 6 | Y19: T | Z19: 5 | AA19: 6 | AB19: T | AC19: 5 | AD19: 6 | AE19: T | AF19: 5 | AG19: 6 | AH19: T | AI19: 5 | AJ19: 6
A20: Grales. | B20: 218 | C20: 581 | D20: =IF(SUM(B20,C20)=0,"",SUM(B20,C20)) -> 799 | E20: 274 | F20: 495 | G20: =IF(SUM(E20,F20)=0,"",SUM(E20,F20)) -> 769 | H20: 355 | I20: 761 | J20: =IF(SUM(H20,I20)=0,"",SUM(H20,I20)) -> 1116 | K20: 203 | L20: 433 | M20: =IF(SUM(K20,L20)=0,"",SUM(K20,L20)) -> 636 | N20: 221 | O20: 527 | P20: =IF(SUM(N20,O20)=0,"",SUM(N20,O20)) -> 748 | Q20: 136 | R20: 399 | S20: =IF(SUM(Q20,R20)=0,"",SUM(Q20,R20)) -> 535 | T20: 117 | U20: 441 | V20: =IF(SUM(T20,U20)=0,"",SUM(T20,U20)) -> 558 | W20: 183 | X20: 303 | Y20: =IF(SUM(W20,X20)=0,"",SUM(W20,X20)) -> 486 | Z20: 68 | AA20: 378 | AB20: =IF(SUM(Z20,AA20)=0,"",SUM(Z20,AA20)) -> 446 | AC20: 18 | AD20: 59 | AE20: =IF(SUM(AC20,AD20)=0,"",SUM(AC20,AD20)) -> 77 | AH20: =IF(SUM(AF20,AG20)=0,"",SUM(AF20,AG20)) ->  | AI20: =IF(SUM(B20,E20,H20,K20,N20,Q20,T20,W20,Z20,AC20,AF20)=0,"",SUM(B20,E20,H20,K20,N20,Q20,T20,W20,Z20,AC20,AF20)) -> 1793 | AJ20: =IF(SUM(C20,F20,I20,L20,O20,R20,U20,X20,AA20,AD20,AG20)=0,"",SUM(C20,F20,I20,L20,O20,R20,U20,X20,AA20,AD20,AG20)) -> 4377
A21: Técs. | B21: 191 | C21: 461 | D21: =IF(SUM(B21,C21)=0,"",SUM(B21,C21)) -> 652 | E21: 261 | F21: 464 | G21: =IF(SUM(E21,F21)=0,"",SUM(E21,F21)) -> 725 | H21: 196 | I21: 585 | J21: =IF(SUM(H21,I21)=0,"",SUM(H21,I21)) -> 781 | K21: 251 | L21: 546 | M21: =IF(SUM(K21,L21)=0,"",SUM(K21,L21)) -> 797 | N21: 232 | O21: 653 | P21: =IF(SUM(N21,O21)=0,"",SUM(N21,O21)) -> 885 | Q21: 147 | R21: 420 | S21: =IF(SUM(Q21,R21)=0,"",SUM(Q21,R21)) -> 567 | T21: 244 | U21: 474 | V21: =IF(SUM(T21,U21)=0,"",SUM(T21,U21)) -> 718 | W21: 116 | X21: 293 | Y21: =IF(SUM(W21,X21)=0,"",SUM(W21,X21)) -> 409 | Z21: 135 | AA21: 252 | AB21: =IF(SUM(Z21,AA21)=0,"",SUM(Z21,AA21)) -> 387 | AC21: 38 | AD21: 81 | AE21: =IF(SUM(AC21,AD21)=0,"",SUM(AC21,AD21)) -> 119 | AH21: =IF(SUM(AF21,AG21)=0,"",SUM(AF21,AG21)) ->  | AI21: =IF(SUM(B21,E21,H21,K21,N21,Q21,T21,W21,Z21,AC21,AF21)=0,"",SUM(B21,E21,H21,K21,N21,Q21,T21,W21,Z21,AC21,AF21)) -> 1811 | AJ21: =IF(SUM(C21,F21,I21,L21,O21,R21,U21,X21,AA21,AD21,AG21)=0,"",SUM(C21,F21,I21,L21,O21,R21,U21,X21,AA21,AD21,AG21)) -> 4229
A22: Telesec. | B22: 87 | C22: 162 | D22: 249 | E22: 83 | F22: 143 | G22: 226 | H22: 94 | I22: 207 | J22: 301 | K22: 70 | L22: 157 | M22: 227 | N22: 81 | O22: 204 | P22: 285 | Q22: 74 | R22: 195 | S22: 269 | T22: 70 | U22: 122 | V22: 192 | W22: 27 | X22: 45 | Y22: 72 | Z22: 34 | AA22: 69 | AB22: 103 | AC22: 13 | AD22: 21 | AE22: 34 | AI22: 633 | AJ22: 1325
A23: Total | B23: =IF(SUM(B20:B22)=0,"",SUM(B20:B22)) -> 496 | C23: =IF(SUM(C20:C22)=0,"",SUM(C20:C22)) -> 1204 | D23: =IF(SUM(D20:D22)=0,"",SUM(D20:D22)) -> 1700 | E23: =IF(SUM(E20:E22)=0,"",SUM(E20:E22)) -> 618 | F23: =IF(SUM(F20:F22)=0,"",SUM(F20:F22)) -> 1102 | G23: =IF(SUM(G20:G22)=0,"",SUM(G20:G22)) -> 1720 | H23: =IF(SUM(H20:H22)=0,"",SUM(H20:H22)) -> 645 | I23: =IF(SUM(I20:I22)=0,"",SUM(I20:I22)) -> 1553 | J23: =IF(SUM(J20:J22)=0,"",SUM(J20:J22)) -> 2198 | K23: =IF(SUM(K20:K22)=0,"",SUM(K20:K22)) -> 524 | L23: =IF(SUM(L20:L22)=0,"",SUM(L20:L22)) -> 1136 | M23: =IF(SUM(M20:M22)=0,"",SUM(M20:M22)) -> 1660 | N23: =IF(SUM(N20:N22)=0,"",SUM(N20:N22)) -> 534 | O23: =IF(SUM(O20:O22)=0,"",SUM(O20:O22)) -> 1384 | P23: =IF(SUM(P20:P22)=0,"",SUM(P20:P22)) -> 1918 | Q23: =IF(SUM(Q20:Q22)=0,"",SUM(Q20:Q22)) -> 357 | R23: =IF(SUM(R20:R22)=0,"",SUM(R20:R22)) -> 1014 | S23: =IF(SUM(S20:S22)=0,"",SUM(S20:S22)) -> 1371 | T23: =IF(SUM(T20:T22)=0,"",SUM(T20:T22)) -> 431 | U23: =IF(SUM(U20:U22)=0,"",SUM(U20:U22)) -> 1037 | V23: =IF(SUM(V20:V22)=0,"",SUM(V20:V22)) -> 1468 | W23: =IF(SUM(W20:W22)=0,"",SUM(W20:W22)) -> 326 | X23: =IF(SUM(X20:X22)=0,"",SUM(X20:X22)) -> 641 | Y23: =IF(SUM(Y20:Y22)=0,"",SUM(Y20:Y22)) -> 967 | Z23: =IF(SUM(Z20:Z22)=0,"",SUM(Z20:Z22)) -> 237 | AA23: =IF(SUM(AA20:AA22)=0,"",SUM(AA20:AA22)) -> 699 | AB23: =IF(SUM(AB20:AB22)=0,"",SUM(AB20:AB22)) -> 936 | AC23: =IF(SUM(AC20:AC22)=0,"",SUM(AC20:AC22)) -> 69 | AD23: =IF(SUM(AD20:AD22)=0,"",SUM(AD20:AD22)) -> 161 | AE23: =IF(SUM(AE20:AE22)=0,"",SUM(AE20:AE22)) -> 230 | AF23: =IF(SUM(AF20:AF22)=0,"",SUM(AF20:AF22)) ->  | AG23: =IF(SUM(AG20:AG22)=0,"",SUM(AG20:AG22)) ->  | AH23: =IF(SUM(AH20:AH22)=0,"",SUM(AH20:AH22)) ->  | AI23: =IF(SUM(AI20:AI22)=0,"",SUM(AI20:AI22)) -> 4237 | AJ23: =IF(SUM(AJ20:AJ22)=0,"",SUM(AJ20:AJ22)) -> 9931
A25: Nota: Para las columnas "Campos de Formación Académica y Áreas de Desarrollo Personal y Social en riesgo de no acreditar" registre la cantidad de cincos o seis que existen en cada campo o área.

Sheet Gráfica APROV 1
B1: Lengua Materna (Español) | C1: Lengua Extranjera (Inglés) | D1: Matemáticas | E1: Ciencias (Biología) | F1: Historia | G1: Geografía | H1: Formación Cívica y Ética | I1: Educación Tecnológica | J1: Artes | K1: Educación Física | L1: Tutoría y Educación Socioemocional
B2: ='APROV 1'!B15:D15 -> 8.3 | C2: ='APROV 1'!E15 -> 8.3 | D2: ='APROV 1'!H15 -> 8.1 | E2: ='APROV 1'!K15 -> 8.4 | F2: ='APROV 1'!N15 -> 8.3 | G2: ='APROV 1'!Q15 -> 8.4 | H2: ='APROV 1'!T15 -> 8.5 | I2: ='APROV 1'!W15 -> 8.9 | J2: ='APROV 1'!Z15 -> 9.1 | K2: ='APROV 1'!AC15 -> 9.5 | L2: ='APROV 1'!AF15 -> 

Sheet APROV 2 y 3
A1: SECRETARÍA DE EDUCACIÓN PÚBLICA DEL ESTADO DE BAJA CALIFORNIA SUR
A2: DIRECCIÓN DE EDUCACIÓN SECUNDARIA
A3: CICLO ESCOLAR 2019 - 2020
A5: APROVECHAMIENTO Y RIESGO DE NO ACREDITAR
A7: DIRECCIÓN: EDUCACIÓN SECUNDARIA DIRECTOR: PROFR. RUMUALDO RAMÍREZ GUTIERRÉZ PERIODO DE EVALUACIÓN: 1ER. PERIODO
A9: Promedio de Aprovechamiento de los Campos de Formación Académica | W9: Promedio de Aprovechamiento de las Áreas de Desarrollo Personal y Social
A10: Modalidad | B10: Español II | E10: Segunda Lengua Inglés II | H10: Matemáticas II | K10: Ciencias II (Física) | N10: Historia I | Q10: Formación Cívica y Ética I | T10: Educación Tecnológica | W10: Artes | Z10: Educación Física | AC10: Tutoría y Educación Socioemocional | AF10: Prom. Final
B11: CALIF | E11: CALIF | H11: CALIF | K11: CALIF | N11: CALIF | Q11: CALIF | T11: CALIF | W11: CALIF | Z11: CALIF | AC11: CALIF | AF11: CALIF
A12: Grales. | B12: 8.3 | E12: 8.4 | H12: 8.2 | K12: 8.3 | N12: 8.5 | Q12: 8.6 | T12: 8.9 | W12: 9.1 | Z12: 9.4 | AF12: =IFERROR(ROUND(AVERAGE(B12:AE12),1),"") -> 8.6
A13: Técs. | B13: 8.1 | E13: 8.1 | H13: 7.8 | K13: 8.1 | N13: 8.2 | Q13: 8.3 | T13: 8.4 | W13: 8.7 | Z13: 9.4 | AF13: 8.3
A14: Telesec. | B14: 8 | E14: 7.9 | H14: 7.8 | K14: 8 | N14: 8.1 | Q14: 8.3 | T14: 8.8 | W14: 8.8 | Z14: 9.1 | AF14: 8.3
A15: Gral. | B15: =IFERROR(ROUND(AVERAGE(B12:D14),1),"") -> 8.1 | E15: =IFERROR(ROUND(AVERAGE(E12:G14),1),"") -> 8.1 | H15: =IFERROR(ROUND(AVERAGE(H12:J14),1),"") -> 7.9 | K15: =IFERROR(ROUND(AVERAGE(K12:M14),1),"") -> 8.1 | N15: =IFERROR(ROUND(AVERAGE(N12:P14),1),"") -> 8.3 | Q15: =IFERROR(ROUND(AVERAGE(Q12:S14),1),"") -> 8.4 | T15: =IFERROR(ROUND(AVERAGE(T12:V14),1),"") -> 8.7 | W15: =IFERROR(ROUND(AVERAGE(W12:Y14),1),"") -> 8.9 | Z15: =IFERROR(ROUND(AVERAGE(Z12:AB14),1),"") -> 9.3 | AC15: =IFERROR(ROUND(AVERAGE(AC12:AE14),1),"") ->  | AF15: =IFERROR(ROUND(AVERAGE(AF12:AG14),1),"") -> 8.4
A17: Campos de Formación Académica en situacion de riesgo de no acreditar | W17: Áreas de Desarrollo Personal y Social en situacion de riesgo de no acreditar
A18: Modalidad | B18: Español II | E18: Segunda Lengua Inglés II | H18: Matemáticas II | K18: Ciencias II (Física) | N18: Historia I | Q18: Formación Cívica y Ética I | T18: Educación Tecnológica | W18: Artes | Z18: Educación Física | AC18: Tutoría y Educación Socioemocional | AF18: Total
B19: 5 | C19: 6 | D19: T | E19: 5 | F19: 6 | G19: T | H19: 5 | I19: 6 | J19: T | K19: 5 | L19: 6 | M19: T | N19: 5 | O19: 6 | P19: T | Q19: 5 | R19: 6 | S19: T | T19: 5 | U19: 6 | V19: T | W19: 5 | X19: 6 | Y19: T | Z19: 5 | AA19: 6 | AB19: T | AC19: 5 | AD19: 6 | AE19: T | AF19: 5 | AG19: 6
A20: Grales. | B20: 208 | C20: 616 | D20: =IF(SUM(B20,C20)=0,"",SUM(B20,C20)) -> 824 | E20: 208 | F20: 556 | G20: =IF(SUM(E20,F20)=0,"",SUM(E20,F20)) -> 764 | H20: 212 | I20: 665 | J20: =IF(SUM(H20,I20)=0,"",SUM(H20,I20)) -> 877 | K20: 245 | L20: 642 | M20: =IF(SUM(K20,L20)=0,"",SUM(K20,L20)) -> 887 | N20: 204 | O20: 591 | P20: =IF(SUM(N20,O20)=0,"",SUM(N20,O20)) -> 795 | Q20: 175 | R20: 476 | S20: =IF(SUM(Q20,R20)=0,"",SUM(Q20,R20)) -> 651 | T20: 197 | U20: 339 | V20: =IF(SUM(T20,U20)=0,"",SUM(T20,U20)) -> 536 | W20: 85 | X20: 292 | Y20: =IF(SUM(W20,X20)=0,"",SUM(W20,X20)) -> 377 | Z20: 45 | AA20: 96 | AB20: =IF(SUM(Z20,AA20)=0,"",SUM(Z20,AA20)) -> 141 | AE20: =IF(SUM(AC20,AD20)=0,"",SUM(AC20,AD20)) ->  | AF20: =IF(SUM(B20,E20,H20,K20,N20,Q20,T20,W20,Z20,AC20)=0,"",SUM(B20,E20,H20,K20,N20,Q20,T20,W20,Z20,AC20)) -> 1579 | AG20: =IF(SUM(C20,F20,I20,L20,O20,R20,U20,X20,AA20,AD20)=0,"",SUM(C20,F20,I20,L20,O20,R20,U20,X20,AA20,AD20)) -> 4273
A21: Técs. | B21: 239 | C21: 496 | D21: 735 | E21: 379 | F21: 422 | G21: 801 | H21: 280 | I21: 694 | J21: 974 | K21: 226 | L21: 477 | M21: 703 | N21: 235 | O21: 491 | P21: 726 | Q21: 239 | R21: 357 | S21: 596 | T21: 149 | U21: 336 | V21: 485 | W21: 136 | X21: 317 | Y21: 453 | Z21: 53 | AA21: 74 | AB21: 127 | AF21: =IF(SUM(B21,E21,H21,K21,N21,Q21,T21,W21,Z21,AC21)=0,"",SUM(B21,E21,H21,K21,N21,Q21,T21,W21,Z21,AC21)) -> 1936 | AG21: =IF(SUM(C21,F21,I21,L21,O21,R21,U21,X21,AA21,AD21)=0,"",SUM(C21,F21,I21,L21,O21,R21,U21,X21,AA21,AD21)) -> 3664
A22: Telesec. | B22: 71 | C22: 130 | D22: 201 | E22: 70 | F22: 142 | G22: 212 | H22: 92 | I22: 176 | J22: 268 | K22: 64 | L22: 140 | M22: 204 | N22: 74 | O22: 126 | P22: 200 | Q22: 56 | R22: 94 | S22: 150 | T22: 46 | U22: 66 | V22: 112 | W22: 35 | X22: 52 | Y22: 87 | Z22: 13 | AA22: 17 | AB22: 30 | AF22: 521 | AG22: 943
A23: Total | B23: =IF(SUM(B20:B22)=0,"",SUM(B20:B22)) -> 518 | C23: =IF(SUM(C20:C22)=0,"",SUM(C20:C22)) -> 1242 | D23: =IF(SUM(D20:D22)=0,"",SUM(D20:D22)) -> 1760 | E23: =IF(SUM(E20:E22)=0,"",SUM(E20:E22)) -> 657 | F23: =IF(SUM(F20:F22)=0,"",SUM(F20:F22)) -> 1120 | G23: =IF(SUM(G20:G22)=0,"",SUM(G20:G22)) -> 1777 | H23: =IF(SUM(H20:H22)=0,"",SUM(H20:H22)) -> 584 | I23: =IF(SUM(I20:I22)=0,"",SUM(I20:I22)) -> 1535 | J23: =IF(SUM(J20:J22)=0,"",SUM(J20:J22)) -> 2119 | K23: =IF(SUM(K20:K22)=0,"",SUM(K20:K22)) -> 535 | L23: =IF(SUM(L20:L22)=0,"",SUM(L20:L22)) -> 1259 | M23: =IF(SUM(M20:M22)=0,"",SUM(M20:M22)) -> 1794 | N23: =IF(SUM(N20:N22)=0,"",SUM(N20:N22)) -> 513 | O23: =IF(SUM(O20:O22)=0,"",SUM(O20:O22)) -> 1208 | P23: =IF(SUM(P20:P22)=0,"",SUM(P20:P22)) -> 1721 | Q23: =IF(SUM(Q20:Q22)=0,"",SUM(Q20:Q22)) -> 470 | R23: =IF(SUM(R20:R22)=0,"",SUM(R20:R22)) -> 927 | S23: =IF(SUM(S20:S22)=0,"",SUM(S20:S22)) -> 1397 | T23: =IF(SUM(T20:T22)=0,"",SUM(T20:T22)) -> 392 | U23: =IF(SUM(U20:U22)=0,"",SUM(U20:U22)) -> 741 | V23: =IF(SUM(V20:V22)=0,"",SUM(V20:V22)) -> 1133 | W23: =IF(SUM(W20:W22)=0,"",SUM(W20:W22)) -> 256 | X23: =IF(SUM(X20:X22)=0,"",SUM(X20:X22)) -> 661 | Y23: =IF(SUM(Y20:Y22)=0,"",SUM(Y20:Y22)) -> 917 | Z23: =IF(SUM(Z20:Z22)=0,"",SUM(Z20:Z22)) -> 111 | AA23: =IF(SUM(AA20:AA22)=0,"",SUM(AA20:AA22)) -> 187 | AB23: =IF(SUM(AB20:AB22)=0,"",SUM(AB20:AB22)) -> 298 | AC23: =IF(SUM(AC20:AC22)=0,"",SUM(AC20:AC22)) ->  | AD23: =IF(SUM(AD20:AD22)=0,"",SUM(AD20:AD22)) ->  | AE23: =IF(SUM(AE20:AE22)=0,"",SUM(AE20:AE22)) ->  | AF23: =IF(SUM(AF20:AF22)=0,"",SUM(AF20:AF22)) -> 4036 | AG23: =IF(SUM(AG20:AG22)=0,"",SUM(AG20:AG22)) -> 8880
A25: Nota: Para las columnas "Campos de Formación Académica y Áreas de Desarrollo Personal y Social en riesgo de no acreditar" registre la cantidad de cincos o seis que existen en cada campo o área.
A29: SECRETARÍA DE EDUCACIÓN PÚBLICA DEL ESTADO DE BAJA CALIFORNIA SUR
A30: DIRECCIÓN DE EDUCACIÓN SECUNDARIA
A31: CICLO ESCOLAR 2019 - 2020
A33: APROVECHAMIENTO Y RIESGO DE NO ACREDITAR
A35: DIRECCIÓN: EDUCACIÓN SECUNDARIA DIRECTOR: PROFR. RUMUALDO RAMÍREZ GUTIERRÉZ PERIODO DE EVALUACIÓN: 1ER. PERIODO
A37: Promedio de Aprovechamiento de los Campos de Formación Académica | W37: Promedio de Aprovechamiento de las Áreas de Desarrollo Personal y Social
A38: Modalidad | B38: Español III | E38: Segunda Lengua Inglés III | H38: Matemáticas III | K38: Ciencias III (Química) | N38: Historia II | Q38: Formación Cívica y Ética II | T38: Educación Tecnológica | W38: Artes | Z38: Educación Física | AC38: Tutoría y Educación Socioemocional | AF38: Prom. Final
B39: CALIF | E39: CALIF | H39: CALIF | K39: CALIF | N39: CALIF | Q39: CALIF | T39: CALIF | W39: CALIF | Z39: CALIF | AC39: CALIF | AF39: CALIF
A40: Grales. | B40: 8.4 | E40: 8.4 | H40: 8.2 | K40: 8.3 | N40: 8.6 | Q40: 8.6 | T40: 8.9 | W40: 9.1 | Z40: 9.4 | AF40: =IFERROR(ROUND(AVERAGE(B40:AE40),1),"") -> 8.7
A41: Técs. | B41: 8.2 | E41: 8.1 | H41: 7.9 | K41: 8.1 | N41: 8.1 | Q41: 8.4 | T41: 8.5 | W41: 8.9 | Z41: 9.2 | AF41: 8.4
A42: Telesec. | B42: 8.3 | E42: 8.1 | H42: 8 | K42: 8.2 | N42: 8.2 | Q42: 8.5 | T42: 9.1 | W42: 9.1 | Z42: 9.3 | AF42: 8.5
A43: Gral. | B43: =IFERROR(ROUND(AVERAGE(B40:D42),1),"") -> 8.3 | E43: =IFERROR(ROUND(AVERAGE(E40:G42),1),"") -> 8.2 | H43: =IFERROR(ROUND(AVERAGE(H40:J42),1),"") -> 8 | K43: =IFERROR(ROUND(AVERAGE(K40:M42),1),"") -> 8.2 | N43: =IFERROR(ROUND(AVERAGE(N40:P42),1),"") -> 8.3 | Q43: =IFERROR(ROUND(AVERAGE(Q40:S42),1),"") -> 8.5 | T43: =IFERROR(ROUND(AVERAGE(T40:V42),1),"") -> 8.8 | W43: =IFERROR(ROUND(AVERAGE(W40:Y42),1),"") -> 9 | Z43: =IFERROR(ROUND(AVERAGE(Z40:AB42),1),"") -> 9.3 | AC43: =IFERROR(ROUND(AVERAGE(AC40:AE42),1),"") ->  | AF43: =IFERROR(ROUND(AVERAGE(AF40:AG42),1),"") -> 8.5
A45: Campos de Formación Académica en situacion de riesgo de no acreditar | W45: Áreas de Desarrollo Personal y Social en situacion de riesgo de no acreditar
A46: Modalidad | B46: Español III | E46: Segunda Lengua Inglés III | H46: Matemáticas III | K46: Ciencias III (Química) | N46: Historia II | Q46: Formación Cívica y Ética II | T46: Educación Tecnológica | W46: Artes | Z46: Educación Física | AC46: Tutoría y Educación Socioemocional | AF46: Total
B47: 5 | C47: 6 | D47: T | E47: 5 | F47: 6 | G47: T | H47: 5 | I47: 6 | J47: T | K47: 5 | L47: 6 | M47: T | N47: 5 | O47: 6 | P47: T | Q47: 5 | R47: 6 | S47: T | T47: 5 | U47: 6 | V47: T | W47: 5 | X47: 6 | Y47: T | Z47: 5 | AA47: 6 | AB47: T | AC47: 5 | AD47: 6 | AE47: T | AF47: 5 | AG47: 6
A48: Grales. | B48: 239 | C48: 599 | D48: =IF(SUM(B48,C48)=0,"",SUM(B48,C48)) -> 838 | E48: 226 | F48: 550 | G48: =IF(SUM(E48,F48)=0,"",SUM(E48,F48)) -> 776 | H48: 284 | I48: 553 | J48: =IF(SUM(H48,I48)=0,"",SUM(H48,I48)) -> 837 | K48: 323 | L48: 564 | M48: =IF(SUM(K48,L48)=0,"",SUM(K48,L48)) -> 887 | N48: 242 | O48: 507 | P48: =IF(SUM(N48,O48)=0,"",SUM(N48,O48)) -> 749 | Q48: 210 | R48: 437 | S48: =IF(SUM(Q48,R48)=0,"",SUM(Q48,R48)) -> 647 | T48: 173 | U48: 273 | V48: =IF(SUM(T48,U48)=0,"",SUM(T48,U48)) -> 446 | W48: 127 | X48: 316 | Y48: =IF(SUM(W48,X48)=0,"",SUM(W48,X48)) -> 443 | Z48: 52 | AA48: 92 | AB48: =IF(SUM(Z48,AA48)=0,"",SUM(Z48,AA48)) -> 144 | AE48: =IF(SUM(AC48,AD48)=0,"",SUM(AC48,AD48)) ->  | AF48: =IF(SUM(B48,E48,H48,K48,N48,Q48,T48,W48,Z48,AC48)=0,"",SUM(B48,E48,H48,K48,N48,Q48,T48,W48,Z48,AC48)) -> 1876 | AG48: =IF(SUM(C48,F48,I48,L48,O48,R48,U48,X48,AA48,AD48)=0,"",SUM(C48,F48,I48,L48,O48,R48,U48,X48,AA48,AD48)) -> 3891
A49: Técs. | B49: 231 | C49: 465 | D49: =IF(SUM(B49,C49)=0,"",SUM(B49,C49)) -> 696 | E49: 349 | F49: 568 | G49: =IF(SUM(E49,F49)=0,"",SUM(E49,F49)) -> 917 | H49: 359 | I49: 740 | J49: =IF(SUM(H49,I49)=0,"",SUM(H49,I49)) -> 1099 | K49: 388 | L49: 417 | M49: =IF(SUM(K49,L49)=0,"",SUM(K49,L49)) -> 805 | N49: 335 | O49: 491 | P49: =IF(SUM(N49,O49)=0,"",SUM(N49,O49)) -> 826 | Q49: 213 | R49: 504 | S49: 717 | T49: 191 | U49: 318 | V49: 509 | W49: 163 | X49: 260 | Y49: 423 | Z49: 28 | AA49: 72 | AB49: 100 | AF49: =IF(SUM(B49,E49,H49,K49,N49,Q49,T49,W49,Z49,AC49)=0,"",SUM(B49,E49,H49,K49,N49,Q49,T49,W49,Z49,AC49)) -> 2257 | AG49: =IF(SUM(C49,F49,I49,L49,O49,R49,U49,X49,AA49,AD49)=0,"",SUM(C49,F49,I49,L49,O49,R49,U49,X49,AA49,AD49)) -> 3835
A50: Telesec. | B50: 36 | C50: 146 | D50: 182 | E50: 47 | F50: 166 | G50: 213 | H50: 57 | I50: 180 | J50: 237 | K50: 48 | L50: 147 | M50: 195 | N50: 46 | O50: 140 | P50: 186 | Q50: 40 | R50: 80 | S50: 120 | T50: 21 | U50: 45 | V50: 66 | W50: 23 | X50: 57 | Y50: 80 | Z50: 5 | AA50: 16 | AB50: 21 | AF50: 323 | AG50: 977
A51: Total | B51: =IF(SUM(B48:B50)=0,"",SUM(B48:B50)) -> 506 | C51: =IF(SUM(C48:C50)=0,"",SUM(C48:C50)) -> 1210 | D51: =IF(SUM(D48:D50)=0,"",SUM(D48:D50)) -> 1716 | E51: =IF(SUM(E48:E50)=0,"",SUM(E48:E50)) -> 622 | F51: =IF(SUM(F48:F50)=0,"",SUM(F48:F50)) -> 1284 | G51: =IF(SUM(G48:G50)=0,"",SUM(G48:G50)) -> 1906 | H51: =IF(SUM(H48:H50)=0,"",SUM(H48:H50)) -> 700 | I51: =IF(SUM(I48:I50)=0,"",SUM(I48:I50)) -> 1473 | J51: =IF(SUM(J48:J50)=0,"",SUM(J48:J50)) -> 2173 | K51: =IF(SUM(K48:K50)=0,"",SUM(K48:K50)) -> 759 | L51: =IF(SUM(L48:L50)=0,"",SUM(L48:L50)) -> 1128 | M51: =IF(SUM(M48:M50)=0,"",SUM(M48:M50)) -> 1887 | N51: =IF(SUM(N48:N50)=0,"",SUM(N48:N50)) -> 623 | O51: =IF(SUM(O48:O50)=0,"",SUM(O48:O50)) -> 1138 | P51: =IF(SUM(P48:P50)=0,"",SUM(P48:P50)) -> 1761 | Q51: =IF(SUM(Q48:Q50)=0,"",SUM(Q48:Q50)) -> 463 | R51: =IF(SUM(R48:R50)=0,"",SUM(R48:R50)) -> 1021 | S51: =IF(SUM(S48:S50)=0,"",SUM(S48:S50)) -> 1484 | T51: =IF(SUM(T48:T50)=0,"",SUM(T48:T50)) -> 385 | U51: =IF(SUM(U48:U50)=0,"",SUM(U48:U50)) -> 636 | V51: =IF(SUM(V48:V50)=0,"",SUM(V48:V50)) -> 1021 | W51: =IF(SUM(W48:W50)=0,"",SUM(W48:W50)) -> 313 | X51: =IF(SUM(X48:X50)=0,"",SUM(X48:X50)) -> 633 | Y51: =IF(SUM(Y48:Y50)=0,"",SUM(Y48:Y50)) -> 946 | Z51: =IF(SUM(Z48:Z50)=0,"",SUM(Z48:Z50)) -> 85 | AA51: =IF(SUM(AA48:AA50)=0,"",SUM(AA48:AA50)) -> 180 | AB51: =IF(SUM(AB48:AB50)=0,"",SUM(AB48:AB50)) -> 265 | AC51: =IF(SUM(AC48:AC50)=0,"",SUM(AC48:AC50)) ->  | AD51: =IF(SUM(AD48:AD50)=0,"",SUM(AD48:AD50)) ->  | AE51: =IF(SUM(AE48:AE50)=0,"",SUM(AE48:AE50)) ->  | AF51: =IF(SUM(AF48:AF50)=0,"",SUM(AF48:AF50)) -> 4456 | AG51: =IF(SUM(AG48:AG50)=0,"",SUM(AG48:AG50)) -> 8703
A52: Nota: Para las columnas "Campos de Formación Académica y Áreas de Desarrollo Personal y Social en riesgo de no acreditar" registre la cantidad de cincos o seis que existen en cada campo o área.

Sheet Gráfica APROV 2 Y 3
B2: Español II | C2: Segunda Lengua Inglés II | D2: Matemáticas II | E2: Ciencias II (Física) | F2: Historia I | G2: Formación Cívica y Ética I | H2: Educación Tecnológica | I2: Artes | J2: Educación Física | K2: Tutoría y Educación Socioemocional
B3: ='APROV 2 y 3'!B15 -> 8.1 | C3: ='APROV 2 y 3'!E15 -> 8.1 | D3: ='APROV 2 y 3'!H15 -> 7.9 | E3: ='APROV 2 y 3'!K15 -> 8.1 | F3: ='APROV 2 y 3'!N15 -> 8.3 | G3: ='APROV 2 y 3'!Q15 -> 8.4 | H3: ='APROV 2 y 3'!T15 -> 8.7 | I3: ='APROV 2 y 3'!W15 -> 8.9 | J3: ='APROV 2 y 3'!Z15 -> 9.3 | K3: ='APROV 2 y 3'!AC15 -> 
B36: Español III | C36: Segunda Lengua Inglés III | D36: Matemáticas III | E36: Ciencias III (Química) | F36: Historia II | G36: Formación Cívica y Ética II | H36: Educación Tecnológica | I36: Artes | J36: Educación Física | K36: Tutoría y Educación Socioemocional
B37: ='APROV 2 y 3'!B43 -> 8.3 | C37: ='APROV 2 y 3'!E43 -> 8.2 | D37: ='APROV 2 y 3'!H43 -> 8 | E37: ='APROV 2 y 3'!K43 -> 8.2 | F37: ='APROV 2 y 3'!N43 -> 8.3 | G37: ='APROV 2 y 3'!Q43 -> 8.5 | H37: ='APROV 2 y 3'!T43 -> 8.8 | I37: ='APROV 2 y 3'!W43 -> 9 | J37: ='APROV 2 y 3'!Z43 -> 9.3 | K37: ='APROV 2 y 3'!AC43 -> 

Sheet Gráfica Promedios Finales
B10: PROMEDIO 1RO | C10: PROMEDIO 2DO | D10: PROMEDIO 3ERO
B11: =+'APROV 1'!AI15 -> 8.6 | C11: =+'APROV 2 y 3'!AF15 -> 8.4 | D11: =+'APROV 2 y 3'!AF43 -> 8.5

Sheet MATRICULA
A1: SECRETARÍA DE EDUCACIÓN PÚBLICA DEL ESTADO DE BAJA CALIFORNIA SUR
A2: DIRECCIÓN DE EDUCACIÓN SECUNDARIA
A3: CICLO ESCOLAR 2019 - 2020
A4: MATRÍCULA
A6: DIRECCIÓN: EDUCACIÓN SECUNDARIA DIRECTOR: PROFR. RUMUALDO RAMÍREZ GUTIERRÉZ PERIODO DE EVALUACIÓN: 1ER. PERIODO
A8: Modalidad | B8: MATRÍCULA
B9: INSCRIPCIÓN INICIAL | N9: CAMBIOS DESDE OTRAS ESCUELAS (ALTAS)
B10: PRIMERO | E10: SEGUNDO | H10: TERCERO | K10: TOTAL | N10: PRIMERO | Q10: SEGUNDO | T10: TERCERO | W10: TOTAL
B11: H | C11: M | D11: T | E11: H | F11: M | G11: T | H11: H | I11: M | J11: T | K11: H | L11: M | M11: T | N11: H | O11: M | P11: T | Q11: H | R11: M | S11: T | T11: H | U11: M | V11: T | W11: H | X11: M | Y11: T
A12: Grales. | B12: 3463 | C12: 3430 | D12: =IF(SUM(B12,C12)=0,"",SUM(B12,C12)) -> 6893 | E12: 3344 | F12: 3163 | G12: =IF(SUM(E12,F12)=0,"",SUM(E12,F12)) -> 6507 | H12: 3137 | I12: 3074 | J12: =IF(SUM(H12,I12)=0,"",SUM(H12,I12)) -> 6211 | K12: =IF(SUM(B12,E12,H12)=0,"",SUM(B12,E12,H12)) -> 9944 | L12: =IF(SUM(C12,F12,I12)=0,"",SUM(SUM(C12,F12,I12))) -> 9667 | M12: =IF(SUM(K12,L12)=0,"",SUM(K12,L12)) -> 19611 | N12: 22 | O12: 30 | P12: =IF(SUM(N12,O12)=0,"",SUM(N12,O12)) -> 52 | Q12: 20 | R12: 19 | S12: =IF(SUM(Q12,R12)=0,"",SUM(Q12,R12)) -> 39 | T12: 14 | U12: 26 | V12: =IF(SUM(T12,U12)=0,"",SUM(T12,U12)) -> 40 | W12: =IF(SUM(N12,Q12,T12)=0,"",SUM(N12,Q12,T12)) -> 56 | X12: =IF(SUM(O12,R12,U12)=0,"",SUM(SUM(O12,R12,U12))) -> 75 | Y12: =IF(SUM(W12,X12)=0,"",SUM(W12,X12)) -> 131
A13: Técs. | B13: 2617 | C13: 2501 | D13: =IF(SUM(B13,C13)=0,"",SUM(B13,C13)) -> 5118 | E13: 2509 | F13: 2516 | G13: =IF(SUM(E13,F13)=0,"",SUM(E13,F13)) -> 5025 | H13: 2437 | I13: 2406 | J13: =IF(SUM(H13,I13)=0,"",SUM(H13,I13)) -> 4843 | K13: =IF(SUM(B13,E13,H13)=0,"",SUM(B13,E13,H13)) -> 7563 | L13: =IF(SUM(C13,F13,I13)=0,"",SUM(SUM(C13,F13,I13))) -> 7423 | M13: =IF(SUM(K13,L13)=0,"",SUM(K13,L13)) -> 14986 | N13: 14 | O13: 9 | P13: =IF(SUM(N13,O13)=0,"",SUM(N13,O13)) -> 23 | Q13: 12 | R13: 10 | S13: =IF(SUM(Q13,R13)=0,"",SUM(Q13,R13)) -> 22 | T13: 7 | U13: 21 | V13: =IF(SUM(T13,U13)=0,"",SUM(T13,U13)) -> 28 | W13: =IF(SUM(N13,Q13,T13)=0,"",SUM(N13,Q13,T13)) -> 33 | X13: =IF(SUM(O13,R13,U13)=0,"",SUM(SUM(O13,R13,U13))) -> 40 | Y13: =IF(SUM(W13,X13)=0,"",SUM(W13,X13)) -> 73
A14: Telesec. | B14: 927 | C14: 863 | D14: 1790 | E14: 790 | F14: 718 | G14: 1508 | H14: 694 | I14: 673 | J14: 1367 | K14: 2411 | L14: 2254 | M14: 4665 | N14: 5 | O14: 6 | P14: 11 | Q14: 15 | R14: 8 | S14: 23 | T14: 7 | U14: 6 | V14: 13 | W14: 27 | X14: 20 | Y14: 47
D20: =IF(SUM(B20,C20)=0,"",SUM(B20,C20)) ->  | G20: =IF(SUM(E20,F20)=0,"",SUM(E20,F20)) ->  | J20: =IF(SUM(H20,I20)=0,"",SUM(H20,I20)) ->  | K20: =IF(SUM(B20,E20,H20)=0,"",SUM(B20,E20,H20)) ->  | L20: =IF(SUM(C20,F20,I20)=0,"",SUM(SUM(C20,F20,I20))) ->  | M20: =IF(SUM(K20,L20)=0,"",SUM(K20,L20)) ->  | P20: =IF(SUM(N20,O20)=0,"",SUM(N20,O20)) ->  | S20: =IF(SUM(Q20,R20)=0,"",SUM(Q20,R20)) ->  | V20: =IF(SUM(T20,U20)=0,"",SUM(T20,U20)) ->  | W20: =IF(SUM(N20,Q20,T20)=0,"",SUM(N20,Q20,T20)) ->  | X20: =IF(SUM(O20,R20,U20)=0,"",SUM(SUM(O20,R20,U20))) ->  | Y20: =IF(SUM(W20,X20)=0,"",SUM(W20,X20)) -> 
A22: TOTAL | B22: =IF(SUM(B12:B21)=0,"",SUM(B12:B21)) -> 7007 | C22: =IF(SUM(C12:C21)=0,"",SUM(C12:C21)) -> 6794 | D22: 13801 | E22: 6643 | F22: 6397 | G22: 13040 | H22: 6268 | I22: 6153 | J22: 12421 | K22: 19918 | L22: 19344 | M22: 39262 | N22: 41 | O22: 45 | P22: 86 | Q22: 47 | R22: 37 | S22: 84 | T22: 28 | U22: 53 | V22: 81 | W22: 116 | X22: 135 | Y22: 251
A24: Modalidad | B24: BAJAS | Z24: EXISTENCIA
B25: DESERCIÓN | N25: CAMBIOS HACIA OTRAS ESCUELAS (TRASLADOS)
B26: PRIMERO | E26: SEGUNDO | H26: TERCERO | K26: TOTAL | N26: PRIMERO | Q26: SEGUNDO | T26: TERCERO | W26: TOTAL | Z26: PRIMERO | AC26: SEGUNDO | AF26: TERCERO | AI26: TOTAL
B27: H | C27: M | D27: T | E27: H | F27: M | G27: T | H27: H | I27: M | J27: T | K27: H | L27: M | M27: T | N27: H | O27: M | P27: T | Q27: H | R27: M | S27: T | T27: H | U27: M | V27: T | W27: H | X27: M | Y27: T | Z27: H | AA27: M | AB27: T | AC27: H | AD27: M | AE27: T | AF27: H | AG27: M | AH27: T | AI27: H | AJ27: M | AK27: T
A28: Grales. | B28: 22 | C28: 22 | D28: =IF(SUM(B28,C28)=0,"",SUM(B28,C28)) -> 44 | E28: 17 | F28: 16 | G28: =IF(SUM(E28,F28)=0,"",SUM(E28,F28)) -> 33 | H28: 16 | I28: 17 | J28: =IF(SUM(H28,I28)=0,"",SUM(H28,I28)) -> 33 | K28: =IF(SUM(B28,E28,H28)=0,"",SUM(B28,E28,H28)) -> 55 | L28: =IF(SUM(C28,F28,I28)=0,"",SUM(SUM(C28,F28,I28))) -> 55 | M28: =IF(SUM(K28,L28)=0,"",SUM(K28,L28)) -> 110 | N28: 24 | O28: 32 | P28: =IF(SUM(N28,O28)=0,"",SUM(N28,O28)) -> 56 | Q28: 34 | R28: 27 | S28: =IF(SUM(Q28,R28)=0,"",SUM(Q28,R28)) -> 61 | T28: 22 | U28: 24 | V28: =IF(SUM(T28,U28)=0,"",SUM(T28,U28)) -> 46 | W28: =IF(SUM(N28,Q28,T28)=0,"",SUM(N28,Q28,T28)) -> 80 | X28: =IF(SUM(O28,R28,U28)=0,"",SUM(SUM(O28,R28,U28))) -> 83 | Y28: =IF(SUM(W28,X28)=0,"",SUM(W28,X28)) -> 163 | Z28: =IF(SUM(B12,N12-B28-N28)=0,"",SUM(B12,N12-B28-N28)) -> 3439 | AA28: =IF(SUM(C12,O12-C28-O28)=0,"",SUM(C12,O12-C28-O28)) -> 3406 | AB28: =IF(SUM(Z28,AA28)=0,"",SUM(Z28,AA28)) -> 6845 | AC28: =IF(SUM(E12,Q12-E28-Q28)=0,"",SUM(E12,Q12-E28-Q28)) -> 3313 | AD28: =IF(SUM(F12,R12-F28-R28)=0,"",SUM(F12,R12-F28-R28)) -> 3139 | AE28: =IF(SUM(AC28,AD28)=0,"",SUM(AC28,AD28)) -> 6452 | AF28: =IF(SUM(H12,T12-H28-T28)=0,"",SUM(H12,T12-H28-T28)) -> 3113 | AG28: =IF(SUM(I12,U12-I28-U28)=0,"",SUM(I12,U12-I28-U28)) -> 3059 | AH28: =IF(SUM(AF28,AG28)=0,"",SUM(AF28,AG28)) -> 6172 | AI28: =IF(SUM(Z28,AC28,AF28)=0,"",SUM(Z28,AC28,AF28)) -> 9865 | AJ28: =IF(SUM(AA28,AD28,AG28)=0,"",SUM(SUM(AA28,AD28,AG28))) -> 9604 | AK28: =IF(SUM(AI28,AJ28)=0,"",SUM(AI28,AJ28)) -> 19469
A29: Técs. | B29: 6 | C29: 4 | D29: =IF(SUM(B29,C29)=0,"",SUM(B29,C29)) -> 10 | E29: 3 | F29: 2 | G29: =IF(SUM(E29,F29)=0,"",SUM(E29,F29)) -> 5 | H29: 3 | I29: 6 | J29: =IF(SUM(H29,I29)=0,"",SUM(H29,I29)) -> 9 | K29: =IF(SUM(B29,E29,H29)=0,"",SUM(B29,E29,H29)) -> 12 | L29: =IF(SUM(C29,F29,I29)=0,"",SUM(SUM(C29,F29,I29))) -> 12 | M29: =IF(SUM(K29,L29)=0,"",SUM(K29,L29)) -> 24 | N29: 23 | O29: 22 | P29: =IF(SUM(N29,O29)=0,"",SUM(N29,O29)) -> 45 | Q29: 27 | R29: 27 | S29: =IF(SUM(Q29,R29)=0,"",SUM(Q29,R29)) -> 54 | T29: 16 | U29: 23 | V29: =IF(SUM(T29,U29)=0,"",SUM(T29,U29)) -> 39 | W29: =IF(SUM(N29,Q29,T29)=0,"",SUM(N29,Q29,T29)) -> 66 | X29: =IF(SUM(O29,R29,U29)=0,"",SUM(SUM(O29,R29,U29))) -> 72 | Y29: =IF(SUM(W29,X29)=0,"",SUM(W29,X29)) -> 138 | Z29: =IF(SUM(B13,N13-B29-N29)=0,"",SUM(B13,N13-B29-N29)) -> 2602 | AA29: =IF(SUM(C13,O13-C29-O29)=0,"",SUM(C13,O13-C29-O29)) -> 2484 | AB29: =IF(SUM(Z29,AA29)=0,"",SUM(Z29,AA29)) -> 5086 | AC29: =IF(SUM(E13,Q13-E29-Q29)=0,"",SUM(E13,Q13-E29-Q29)) -> 2491 | AD29: =IF(SUM(F13,R13-F29-R29)=0,"",SUM(F13,R13-F29-R29)) -> 2497 | AE29: =IF(SUM(AC29,AD29)=0,"",SUM(AC29,AD29)) -> 4988 | AF29: =IF(SUM(H13,T13-H29-T29)=0,"",SUM(H13,T13-H29-T29)) -> 2425 | AG29: =IF(SUM(I13,U13-I29-U29)=0,"",SUM(I13,U13-I29-U29)) -> 2398 | AH29: =IF(SUM(AF29,AG29)=0,"",SUM(AF29,AG29)) -> 4823 | AI29: =IF(SUM(Z29,AC29,AF29)=0,"",SUM(Z29,AC29,AF29)) -> 7518 | AJ29: =IF(SUM(AA29,AD29,AG29)=0,"",SUM(SUM(AA29,AD29,AG29))) -> 7379 | AK29: =IF(SUM(AI29,AJ29)=0,"",SUM(AI29,AJ29)) -> 14897
A30: Telesec. | B30: 3 | C30: 3 | D30: 6 | E30: 5 | F30: 3 | G30: 8 | H30: 2 | I30: 4 | J30: 6 | K30: 10 | L30: 10 | M30: 20 | N30: 13 | O30: 5 | P30: 18 | Q30: 5 | R30: 11 | S30: 16 | T30: 3 | U30: 6 | V30: 9 | W30: 21 | X30: 22 | Y30: 43 | Z30: 916 | AA30: 861 | AB30: 1777 | AC30: 795 | AD30: 712 | AE30: 1507 | AF30: 696 | AG30: 669 | AH30: 1365 | AI30: 2407 | AJ30: 2242 | AK30: 4649
D36: =IF(SUM(B36,C36)=0,"",SUM(B36,C36)) ->  | G36: =IF(SUM(E36,F36)=0,"",SUM(E36,F36)) ->  | J36: =IF(SUM(H36,I36)=0,"",SUM(H36,I36)) ->  | K36: =IF(SUM(B36,E36,H36)=0,"",SUM(B36,E36,H36)) ->  | L36: =IF(SUM(C36,F36,I36)=0,"",SUM(SUM(C36,F36,I36))) ->  | M36: =IF(SUM(K36,L36)=0,"",SUM(K36,L36)) ->  | P36: =IF(SUM(N36,O36)=0,"",SUM(N36,O36)) ->  | S36: =IF(SUM(Q36,R36)=0,"",SUM(Q36,R36)) ->  | V36: =IF(SUM(T36,U36)=0,"",SUM(T36,U36)) ->  | W36: =IF(SUM(N36,Q36,T36)=0,"",SUM(N36,Q36,T36)) ->  | X36: =IF(SUM(O36,R36,U36)=0,"",SUM(SUM(O36,R36,U36))) ->  | Y36: =IF(SUM(W36,X36)=0,"",SUM(W36,X36)) ->  | AB36: =IF(SUM(Z36,AA36)=0,"",SUM(Z36,AA36)) ->  | AE36: =IF(SUM(AC36,AD36)=0,"",SUM(AC36,AD36)) ->  | AH36: =IF(SUM(AF36,AG36)=0,"",SUM(AF36,AG36)) ->  | AI36: =IF(SUM(Z36,AC36,AF36)=0,"",SUM(Z36,AC36,AF36)) ->  | AJ36: =IF(SUM(AA36,AD36,AG36)=0,"",SUM(SUM(AA36,AD36,AG36))) ->  | AK36: =IF(SUM(AI36,AJ36)=0,"",SUM(AI36,AJ36)) -> 
A38: TOTAL | B38: =IF(SUM(B28:B37)=0,"",SUM(B28:B37)) -> 31 | C38: =IF(SUM(C28:C37)=0,"",SUM(C28:C37)) -> 29 | D38: 60 | E38: 25 | F38: 21 | G38: 46 | H38: 21 | I38: 27 | J38: 48 | K38: 77 | L38: 77 | M38: 154 | N38: 60 | O38: 59 | P38: 119 | Q38: 66 | R38: 65 | S38: 131 | T38: 41 | U38: 53 | V38: 94 | W38: 167 | X38: 177 | Y38: 344 | Z38: 6957 | AA38: 6751 | AB38: 13708 | AC38: 6599 | AD38: 6348 | AE38: 12947 | AF38: 6234 | AG38: 6126 | AH38: 12360 | AI38: 19790 | AJ38: 19225 | AK38: 39015

Sheet NORMALIDAD MÍNIMA
A1: SECRETARÍA DE EDUCACIÓN PÚBLICA DEL ESTADO DE BAJA CALIFORNIA SUR
A2: DIRECCIÓN DE EDUCACIÓN SECUNDARIA
A3: CICLO ESCOLAR 2019 - 2020
A4: CONCENTRADO NORMALIDAD MÍNIMA
B5: DIRECCIÓN: EDUCACIÓN SECUNDARIA DIRECTOR: PROFR. RUMUALDO RAMÍREZ GUTIERRÉZ PERIODO DE EVALUACIÓN: 1ER. PERIODO
B6: Modalidad | C6: DIRECTIVOS (Directores, subdirectores) | F6: COORDINADORES | I6: R | J6: INASISTENCIAS | M6: LICENCIAS ECONÓMICAS | O6: LICENCIAS MÉDICAS | Q6: TOTAL DE DÍAS NO LABORADOS
C7: H | D7: M | E7: T | F7: H | G7: M | H7: T | J7: I | K7: P.D. | L7: D.N.L.I y P.D. | M7: L.E. | N7: D.N.L.E. | O7: L.M. | P7: D.N.L.M. | Q7: DNLI y PD, DNLE, DNLM
B8: Grales. | C8: 66 | D8: 55 | E8: =IF(SUM(C8,D8)=0,"",SUM(C8,D8)) -> 121 | F8: 33 | G8: 31 | H8: =IF(SUM(F8,G8)=0,"",SUM(F8,G8)) -> 64 | I8: 5 | J8: 3 | K8: 18 | L8: =IF(SUM(J8,K8)=0,"",SUM(J8,K8)) -> 21 | M8: 26 | N8: 68 | O8: 22 | P8: 162 | Q8: =IF(SUM(L8,N8,P8)=0,"",SUM(L8,N8,P8)) -> 251
B9: Técs. | C9: 38 | D9: 22 | E9: =IF(SUM(C9,D9)=0,"",SUM(C9,D9)) -> 60 | F9: 31 | G9: 26 | H9: =IF(SUM(F9,G9)=0,"",SUM(F9,G9)) -> 57 | I9: 3 | J9: 16 | K9: 16 | L9: =IF(SUM(J9,K9)=0,"",SUM(J9,K9)) -> 32 | M9: 54 | N9: 112 | O9: 15 | P9: 152 | Q9: =IF(SUM(L9,N9,P9)=0,"",SUM(L9,N9,P9)) -> 296
B10: Telesec. | C10: 28 | D10: 9 | E10: 37 | M10: 22 | N10: 40 | O10: 11 | P10: 19 | Q10: 59
E13: =IF(SUM(C13,D13)=0,"",SUM(C13,D13)) ->  | H13: =IF(SUM(F13,G13)=0,"",SUM(F13,G13)) ->  | L13: =IF(SUM(J13,K13)=0,"",SUM(J13,K13)) -> 
Q17: =IF(SUM(L17,N17,P17)=0,"",SUM(L17,N17,P17)) -> 
B18: Total | C18: =IF(SUM(C8:C17)=0,"",SUM(C8:C17)) -> 132 | D18: =IF(SUM(D8:D17)=0,"",SUM(D8:D17)) -> 86 | E18: 218 | F18: 64 | G18: 57 | H18: 121 | I18: 8 | J18: 19 | K18: 34 | L18: 53 | M18: 102 | N18: 220 | O18: 48 | P18: 333 | Q18: 606
A20: Zona escolar | B20: Modalidad | C20: PERSONAL POR HORAS | F20: DOCENTES | I20: R | J20: INASISTENCIAS (Horas) | M20: LICENCIAS ECONÓMICAS | O20: LICENCIAS MÉDICAS | Q20: TOTAL DE HORAS NO LABORADOS
F21: H | G21: M | H21: T | J21: I | K21: P.D. | L21: H.N.L.I y P.D. | M21: L.E. | N21: H.N.L.E. | O21: L.M. | P21: H.N.L.M. | Q21: HNLI y PD, HNLE, HNLM
B22: Grales. | F22: 646 | G22: 766 | H22: =IF(SUM(F22,G22)=0,"",SUM(F22,G22)) -> 1412 | I22: 642 | J22: 1232 | K22: 563 | L22: =IF(SUM(J22,K22)=0,"",SUM(J22,K22)) -> 1795 | M22: 525 | N22: 4983 | O22: 389 | P22: 6172 | Q22: =IF(SUM(L22,N22,P22)=0,"",SUM(L22,N22,P22)) -> 12950
B23: Técs. | F23: 390 | G23: 460 | H23: 850 | I23: 113 | J23: 1517 | K23: 517 | L23: =IF(SUM(J23,K23)=0,"",SUM(J23,K23)) -> 2034 | M23: 432 | N23: 4212 | O23: 201 | P23: 3518 | Q23: =IF(SUM(L23,N23,P23)=0,"",SUM(L23,N23,P23)) -> 9764
B24: Telesec. | F24: 148 | G24: 113 | H24: 261 | J24: 10 | K24: 6 | L24: 16 | M24: 134 | N24: 851 | O24: 28 | P24: 278 | Q24: 1145
B32: Total | F32: =IF(SUM(F22:F31)=0,"",SUM(F22:F31)) -> 1184 | G32: =IF(SUM(G22:G31)=0,"",SUM(G22:G31)) -> 1339 | H32: 2523 | I32: 755 | J32: 2759 | K32: 1086 | L32: 3845 | M32: 1091 | N32: 10046 | O32: 618 | P32: 9968 | Q32: 23859
A35: Modalidad | C35: ASISTENCIA EDUCATIVA (Psicólogos, trabajo social, médicos, USAER, prefectos) | F35: ADMINISTRATIVO Y DE APOYO | I35: R | J35: INASISTENCIAS | M35: LICENCIAS ECONÓMICAS | O35: LICENCIAS MÉDICAS | Q35: TOTAL DE DÍAS NO LABORADOS
C36: H | D36: M | E36: T | F36: H | G36: M | H36: T | J36: I | K36: P.D. | L36: D.N.L.I y P.D. | M36: L.E. | N36: D.N.L.E. | O36: L.M. | P36: D.N.L.M. | Q36: DNLI y PD, DNLE, DNLM
B37: Grales. | C37: 89 | D37: 205 | E37: =IF(SUM(C37,D37)=0,"",SUM(C37,D37)) -> 294 | F37: 251 | G37: 286 | H37: =IF(SUM(F37,G37)=0,"",SUM(F37,G37)) -> 537 | I37: 305 | J37: 180 | K37: 106 | L37: =IF(SUM(J37,K37)=0,"",SUM(J37,K37)) -> 286 | M37: 440 | N37: 1027 | O37: 230 | P37: 1360 | Q37: =IF(SUM(L37,N37,P37)=0,"",SUM(L37,N37,P37)) -> 2673
B38: Técs. | C38: 99 | D38: 119 | E38: 218 | F38: 135 | G38: 168 | H38: 303 | I38: 49 | J38: 71 | K38: 373 | L38: 444 | M38: 277 | N38: 722 | O38: 116 | P38: 833 | Q38: =IF(SUM(L38,N38,P38)=0,"",SUM(L38,N38,P38)) -> 1999
B39: Telesec. | C39: 11 | D39: 11 | E39: 22 | F39: 59 | G39: 45 | H39: 104 | J39: 9 | K39: 15 | L39: 24 | M39: 87 | N39: 207 | O39: 65 | P39: 301 | Q39: 532
E46: =IF(SUM(C46,D46)=0,"",SUM(C46,D46)) ->  | H46: =IF(SUM(F46,G46)=0,"",SUM(F46,G46)) ->  | L46: =IF(SUM(J46,K46)=0,"",SUM(J46,K46)) -> 
B47: Total | C47: =IF(SUM(C37:C46)=0,"",SUM(C37:C46)) -> 199 | D47: =IF(SUM(D37:D46)=0,"",SUM(D37:D46)) -> 335 | E47: 534 | F47: 445 | G47: 499 | H47: 944 | I47: 354 | J47: 260 | K47: 494 | L47: 754 | M47: 804 | N47: 1956 | O47: 411 | P47: 2494 | Q47: 5204
B49: NOTA: | K49: NOTA:
B50: I.: INASISTENCIAS | K50: H.N.L.E.: HORAS NO LABORADOS POR LICENCIAS ECONÓMICAS
B51: H.N.L.I.: HORAS NO LABORADAS POR INASISTENCIAS | K51: D.N.L.E.: DÍAS NO LABORADOS POR LICENCIAS ECONÓMICAS
B52: D.N.L.I.: DÍAS NO LABORADOS POR INASISTENCIAS | K52: L.M.: PERSONAS QUE PRESENTARON LICENCIAS MÉDICAS
B53: R. : CANTIDAD DE RETARDOS | K53: H.N.L.M.: HORAS NO LABORADAS POR LICENCIAS MÉDICAS
B54: L.E.: PERSONAL QUE SOLICITÓ LICENCIAS ECONÓMICAS | K54: D.N.L.M.: DÍAS NO LABORADOS POR LICENCIAS MÉDICAS
B55: P.D.: PERMISOS DIRECCIÓN
